bitfinex/quotes_SOLUSD_20230112
["timestamp","ask_amount","ask_price","bid_price","bid_amount"]
[1673551574298,108.8956,16.719,16.701,46.83]
[1673551574508,108.8956,16.719,16.701,65.58725104]
[1673551574731,117.0846,16.722,16.702,38.75725104]
[1673551575043,117.0846,16.722,16.704,20.0]
[1673551575254,117.0846,16.722,16.705,81.9]
[1673551575470,117.0846,16.722,16.705,100.65725104]
[1673551575888,117.0846,16.722,16.706,21.92]
[1673551576103,64.85,16.726,16.706,40.67725104]
[1673551576293,64.85,16.726,16.707,63.65725104]
[1673551576503,64.85,16.726,16.708,1.92]
[1673551577036,64.85,16.726,16.708,18.75725104]
[1673551577242,64.85,16.726,16.707,44.9]
[1673551577456,64.85,16.726,16.705,20.0]
[1673551577667,64.85,16.726,16.706,0.96]
[1673551577872,64.85,16.726,16.707,20.96]
[1673551578076,64.85,16.726,16.707,18.75725104]
[1673551578287,64.85,16.726,16.707,63.65725104]
[1673551578501,64.85,16.726,16.705,64.9]
[1673551579147,64.85,16.726,16.705,20.0]
[1673551579337,0.96,16.725,16.705,20.0]
[1673551579647,44.85,16.724,16.705,20.0]
[1673551579860,44.85,16.724,16.707,20.0]
[1673551580071,20.0,16.726,16.708,46.81]
[1673551580491,153.7356,16.727,16.709,20.0]
[1673551580702,153.7356,16.727,16.709,38.75725104]
[1673551580912,20.0,16.726,16.709,38.75725104]
[1673551581226,20.0,16.726,16.709,18.75725104]
[1673551581436,20.0,16.726,16.708,44.89]
[1673551581642,44.84,16.727,16.709,21.92]
[1673551581872,64.84,16.729,16.71,44.89]
[1673551582085,64.84,16.729,16.711,20.0]
[1673551582086,20.0,16.729,16.711,20.0]
[1673551582904,64.83,16.73,16.711,40.0]
[1673551583119,64.83,16.73,16.712,63.63725104]
[1673551583333,64.83,16.73,16.713,20.0]
[1673551583977,44.83,16.73,16.713,20.0]
[1673551584180,274.0767,16.731,16.713,64.88]
[1673551584507,274.0767,16.731,16.713,83.63725104]
[1673551584822,229.2467,16.731,16.715,20.0]
[1673551585030,229.2467,16.731,16.716,20.0]
[1673551585478,111.7011,16.731,16.716,20.0]
[1673551585766,600.0,16.732,16.717,46.79]
[1673551586084,600.0,16.732,16.718,38.75725104]
[1673551586400,600.0,16.732,16.718,18.75725104]
[1673551586903,20.0,16.731,16.716,64.87]
[1673551587861,600.0,16.732,16.716,40.0]
[1673551588187,600.0,16.732,16.716,58.75725104]
[1673551588580,600.0,16.732,16.717,21.92]
[1673551589002,600.0,16.732,16.717,19.71725104]
[1673551589328,20.0,16.731,16.717,18.75725104]
[1673551589741,600.0,16.732,16.717,18.75725104]
[1673551590493,600.0,16.732,16.716,40.0]
[1673551590700,600.0,16.732,16.717,18.75725104]
[1673551590918,600.0,16.732,16.718,21.92]
[1673551591323,600.0,16.732,16.718,40.67725104]
[1673551591637,600.0,16.732,16.719,44.86]
[1673551591851,600.0,16.732,16.721,20.0]
[1673551592273,600.0,16.732,16.72,26.28]
[1673551592685,600.0,16.732,16.72,25.32]
[1673551592897,600.0,16.732,16.72,24.36]
[1673551595514,600.0,16.732,16.716,20.0]
[1673551595738,20.0,16.731,16.715,20.0]
[1673551595950,45.79,16.73,16.714,20.0]
[1673551596139,40.0,16.729,16.711,44.89]
[1673551596352,40.0,16.729,16.707,44.9]
[1673551596353,44.84,16.728,16.707,44.9]
[1673551596564,44.84,16.728,16.705,119.2093]
[1673551596565,341.6078,16.728,16.705,119.2093]
[1673551596785,20.0,16.726,16.705,119.2093]
[1673551596997,20.0,16.724,16.706,20.0]
[1673551597211,44.85,16.723,16.706,64.9]
[1673551597422,109.1689,16.722,16.706,38.75725104]
[1673551597825,109.1689,16.722,16.706,20.0]
[1673551598145,109.1689,16.722,16.706,38.75725104]
[1673551598557,44.85,16.725,16.71,24.37]
[1673551598787,64.84,16.727,16.711,20.0]
[1673551599103,64.84,16.727,16.711,38.75725104]
[1673551599422,64.84,16.727,16.712,20.0]
[1673551599628,44.84,16.727,16.714,20.0]
[1673551599941,20.0,16.73,16.714,20.0]
[1673551599942,44.84,16.729,16.714,20.0]
[1673551600875,44.83,16.73,16.714,20.0]
[1673551601080,44.83,16.73,16.713,18.75725104]
[1673551601294,44.83,16.73,16.711,44.89]
[1673551601295,20.0,16.726,16.71,24.37]
[1673551601508,44.85,16.725,16.71,24.37]
[1673551602049,20.0,16.726,16.71,24.37]
[1673551603719,64.84,16.727,16.711,19.71725104]
[1673551603929,64.84,16.727,16.711,18.75725104]
[1673551604139,20.0,16.726,16.711,18.75725104]
[1673551604559,20.0,16.726,16.71,24.37]
[1673551605407,20.0,16.727,16.711,20.0]
[1673551605623,20.0,16.727,16.711,64.89]
[1673551605835,114.4678,16.728,16.712,20.0]
[1673551606044,114.4678,16.728,16.713,20.0]
[1673551606367,44.84,16.727,16.707,86.6793241]
[1673551606677,20.0,16.726,16.707,63.65725104]
[1673551607400,0.96,16.725,16.707,63.65725104]
[1673551607823,0.96,16.725,16.708,20.0]
[1673551608046,0.96,16.725,16.707,63.65725104]
[1673551608668,0.96,16.725,16.708,20.0]
[1673551609311,0.96,16.725,16.707,63.65725104]
[1673551609620,0.96,16.725,16.707,44.9]
[1673551609815,0.96,16.725,16.708,17.0]
[1673551610027,20.0,16.723,16.706,44.9]
[1673551610361,0.96,16.722,16.706,44.9]
[1673551610996,20.0,16.721,16.706,44.9]
[1673551611187,0.96,16.72,16.706,44.9]
[1673551611401,20.0,16.721,16.706,44.9]
[1673551611908,116.039,16.722,16.706,44.9]
[1673551612351,116.039,16.722,16.707,18.75725104]
[1673551612538,20.0,16.721,16.708,44.89]
[1673551612754,20.0,16.721,16.707,44.9]
[1673551613383,25.36,16.72,16.703,44.91]
[1673551613594,199.4,16.719,16.697,44.92]
[1673551613809,224.27,16.718,16.693,44.93]
[1673551614021,20.96,16.717,16.695,20.0]
[1673551614232,44.87,16.716,16.696,44.93]
[1673551614434,0.96,16.715,16.696,44.93]
[1673551614644,44.88,16.714,16.697,20.0]
[1673551614854,115.4066,16.713,16.698,17.0]
[1673551615294,115.4066,16.713,16.696,44.93]
[1673551615540,20.0,16.712,16.696,44.93]
[1673551615725,20.0,16.712,16.693,63.68725104]
[1673551615937,111.961,16.711,16.693,63.68725104]
[1673551616147,111.961,16.711,16.694,18.75725104]
[1673551616357,111.961,16.711,16.695,44.93]
[1673551616561,20.0,16.71,16.696,17.0]
[1673551616782,111.961,16.711,16.696,17.0]
[1673551616992,111.001,16.711,16.696,17.0]
[1673551617192,114.4466,16.713,16.697,18.75725104]
[1673551617401,114.4466,16.713,16.698,18.92]
[1673551617631,114.4466,16.713,16.699,44.92]
[1673551617826,114.4466,16.713,16.7,17.0]
[1673551618161,20.0,16.712,16.7,17.0]
[1673551618385,20.0,16.712,16.698,44.92]
[1673551618693,20.0,16.712,16.699,17.0]
[1673551618871,20.0,16.712,16.694,20.0]
[1673551618872,45.85,16.711,16.694,20.0]
[1673551619084,45.85,16.711,16.695,20.0]
[1673551619294,44.89,16.711,16.695,38.75725104]
[1673551619631,114.4466,16.713,16.696,38.75725104]
[1673551620041,114.4466,16.713,16.697,18.75725104]
[1673551620360,114.4466,16.713,16.698,17.0]
[1673551620570,114.4466,16.713,16.699,10.0]
[1673551620784,114.4466,16.713,16.7,17.0]
[1673551621190,155.871,16.716,16.701,20.0]
[1673551621525,111.001,16.716,16.702,20.0]
[1673551621731,111.001,16.716,16.703,20.0]
[1673551621943,111.001,16.716,16.704,17.0]
[1673551622137,111.001,16.716,16.705,20.0]
[1673551622463,111.001,16.716,16.706,17.0]
[1673551623291,20.0,16.719,16.706,17.0]
[1673551623916,0.96,16.718,16.706,17.0]
[1673551624145,0.96,16.718,16.7,24.32]
[1673551624357,44.87,16.717,16.697,44.92]
[1673551624562,20.0,16.716,16.695,18.75725104]
[1673551624882,20.0,16.714,16.695,20.0]
[1673551625075,20.0,16.714,16.696,31.30557577]
[1673551625076,164.3814,16.713,16.696,31.30557577]
[1673551625286,20.96,16.712,16.695,20.0]
[1673551625711,44.89,16.711,16.695,64.93]
[1673551626120,20.0,16.71,16.696,20.0]
[1673551626565,65.84,16.712,16.695,20.0]
[1673551626782,45.84,16.712,16.695,20.0]
[1673551627001,119.5014,16.713,16.696,44.93]
[1673551627191,20.0,16.712,16.696,44.93]
[1673551627407,20.0,16.712,16.697,17.0]
[1673551628245,0.96,16.711,16.695,44.93]
[1673551628464,0.96,16.711,16.696,20.0]
[1673551628872,20.0,16.712,16.696,20.0]
[1673551629084,20.0,16.712,16.697,44.92]
[1673551629401,0.96,16.711,16.696,44.93]
[1673551629610,0.96,16.711,16.697,17.0]
[1673551629826,0.96,16.711,16.696,17.0]
[1673551630241,20.0,16.712,16.696,17.0]
[1673551630454,0.96,16.711,16.696,17.0]
[1673551630872,20.0,16.712,16.697,44.92]
[1673551631104,20.0,16.712,16.698,17.0]
[1673551631708,20.0,16.712,16.697,17.0]
[1673551631934,20.0,16.712,16.698,44.92]
[1673551632151,20.0,16.712,16.699,17.0]
[1673551632341,0.96,16.711,16.699,17.0]
[1673551632760,20.0,16.712,16.699,17.0]
[1673551633192,119.5014,16.713,16.698,17.0]
[1673551633625,119.5014,16.713,16.698,61.92]
[1673551633836,119.5014,16.713,16.699,20.0]
[1673551634150,119.5014,16.713,16.7,17.0]
[1673551635823,44.86,16.719,16.7,61.92]
[1673551636025,44.86,16.719,16.702,20.0]
[1673551636239,20.0,16.719,16.703,20.0]
[1673551636436,20.0,16.719,16.704,17.0]
[1673551636650,44.87,16.718,16.704,17.0]
[1673551636969,20.0,16.717,16.704,17.0]
[1673551637181,44.87,16.716,16.704,17.0]
[1673551637390,20.0,16.715,16.704,17.0]
[1673551637811,44.87,16.716,16.704,17.0]
[1673551638026,20.0,16.717,16.704,17.0]
[1673551638240,0.96,16.716,16.704,17.0]
[1673551638677,20.0,16.717,16.705,20.0]
[1673551638887,20.0,16.717,16.706,17.0]
[1673551639285,64.86,16.719,16.706,17.0]
[1673551639513,20.0,16.719,16.706,17.0]
[1673551640139,64.86,16.719,16.706,17.0]
[1673551640355,20.0,16.719,16.706,17.0]
[1673551640558,0.96,16.718,16.706,17.0]
[1673551641930,20.0,16.716,16.696,180.046]
[1673551642139,20.0,16.716,16.698,61.92]
[1673551642352,20.0,16.716,16.699,20.0]
[1673551642559,0.96,16.715,16.699,20.0]
[1673551642770,0.96,16.715,16.7,17.0]
[1673551643503,0.96,16.715,16.698,44.92]
[1673551643722,0.96,16.715,16.697,44.92]
[1673551644330,0.96,16.715,16.698,20.0]
[1673551644647,64.87,16.716,16.697,44.92]
[1673551644862,20.0,16.716,16.699,20.0]
[1673551645175,20.0,16.716,16.7,61.92]
[1673551646011,0.96,16.715,16.7,17.0]
[1673551646232,44.87,16.718,16.7,17.0]
[1673551646233,141.3576,16.72,16.702,20.0]
[1673551646448,20.0,16.719,16.703,81.91]
[1673551647075,117.0876,16.72,16.703,81.91]
[1673551647278,117.0876,16.72,16.704,20.0]
[1673551647279,20.0,16.719,16.704,20.0]
[1673551647609,20.0,16.719,16.705,81.9]
[1673551648031,136.039,16.722,16.705,100.65725104]
[1673551648032,116.039,16.722,16.705,100.65725104]
[1673551648231,44.84,16.728,16.71,24.32]
[1673551648449,131.2598,16.729,16.711,18.92]
[1673551648650,20.0,16.728,16.711,18.92]
[1673551648977,20.0,16.728,16.711,62.85]
[1673551649175,64.84,16.728,16.711,61.89]
[1673551649584,44.85,16.726,16.711,61.89]
[1673551649921,20.0,16.728,16.711,17.0]
[1673551650136,20.0,16.728,16.712,1.92]
[1673551650320,20.0,16.728,16.711,17.0]
[1673551650545,20.0,16.728,16.712,63.63725104]
[1673551650750,20.0,16.728,16.711,44.89]
[1673551651076,20.0,16.728,16.712,18.75725104]
[1673551651298,20.0,16.728,16.713,44.88]
[1673551651485,20.0,16.728,16.714,20.0]
[1673551652137,20.0,16.728,16.715,17.0]
[1673551652448,131.2598,16.729,16.716,20.0]
[1673551652655,111.2598,16.729,16.716,20.0]
[1673551652846,20.0,16.728,16.717,17.0]
[1673551653813,20.0,16.73,16.717,17.0]
[1673551654647,600.0,16.732,16.718,63.62725104]
[1673551654864,600.0,16.732,16.719,18.92]
[1673551655185,600.0,16.732,16.72,20.0]
[1673551655399,600.0,16.732,16.721,63.78]
[1673551655593,600.0,16.732,16.722,40.0]
[1673551655594,450.2065,16.732,16.722,40.0]
[1673551655803,450.2065,16.732,16.723,1.92]
[1673551656014,450.2065,16.732,16.725,20.0]
[1673551656218,20.0,16.731,16.723,18.75725104]
[1673551656429,450.2065,16.732,16.714,44.88]
[1673551656647,450.2065,16.732,16.717,18.75725104]
[1673551656968,450.2065,16.732,16.72,24.4]
[1673551657182,450.2065,16.732,16.721,44.86]
[1673551657590,450.2065,16.732,16.722,20.0]
[1673551657798,450.2065,16.732,16.723,66.77]
[1673551658008,450.2065,16.732,16.725,20.0]
[1673551658234,450.2065,16.732,16.726,20.0]
[1673551658654,450.2065,16.732,16.727,17.0]
[1673551659061,298.0538,16.732,16.727,17.0]
[1673551659286,241.6738,16.732,16.729,20.0]
[1673551659602,241.6738,16.732,16.73,0.96]
[1673551659808,241.6738,16.732,16.73,17.0]
[1673551660210,241.6738,16.732,16.729,37.0]
[1673551660424,241.6738,16.732,16.729,20.0]
[1673551660425,230.6738,16.732,16.729,20.0]
[1673551661171,230.6738,16.732,16.73,1.92]
[1673551661382,230.6738,16.732,16.728,44.84]
[1673551661586,230.6738,16.732,16.726,20.0]
[1673551662098,230.6738,16.732,16.727,64.84]
[1673551662304,230.6738,16.732,16.728,20.0]
[1673551662517,230.6738,16.732,16.729,44.84]
[1673551662729,230.6738,16.732,16.73,17.0]
[1673551662940,230.6738,16.732,16.729,17.0]
[1673551663171,230.6738,16.732,16.728,17.0]
[1673551663693,230.6738,16.732,16.724,20.0]
[1673551663694,64.83,16.731,16.709,20.0]
[1673551663892,24.4,16.73,16.709,20.0]
[1673551664218,64.84,16.729,16.709,20.0]
[1673551664447,64.84,16.729,16.71,69.26]
[1673551664752,64.84,16.729,16.71,24.37]
[1673551664964,44.83,16.73,16.712,20.0]
[1673551665279,44.83,16.731,16.713,44.88]
[1673551665492,230.6738,16.732,16.715,20.0]
[1673551665693,230.6738,16.732,16.72,24.4]
[1673551665905,230.6738,16.732,16.721,17.0]
[1673551666113,230.6738,16.732,16.722,20.0]
[1673551666330,230.6738,16.732,16.723,17.0]
[1673551666534,44.83,16.731,16.723,17.0]
[1673551666953,20.0,16.73,16.723,17.0]
[1673551667160,44.84,16.729,16.723,17.0]
[1673551667372,20.0,16.728,16.723,17.0]
[1673551667680,44.84,16.729,16.723,17.0]
[1673551667896,230.6738,16.732,16.723,17.0]
[1673551668533,20.0,16.731,16.723,17.0]
[1673551669491,182.2133,16.731,16.711,64.89]
[1673551669800,162.2133,16.731,16.714,20.0]
[1673551670205,117.3833,16.731,16.714,64.88]
[1673551670423,117.3833,16.731,16.715,20.0]
[1673551670629,117.3833,16.731,16.716,18.92]
[1673551670839,20.0,16.73,16.716,18.92]
[1673551671046,44.83,16.731,16.716,18.92]
[1673551671262,230.6738,16.732,16.721,20.0]
[1673551671477,230.6738,16.732,16.722,21.92]
[1673551671685,230.6738,16.732,16.723,17.0]
[1673551672732,230.6738,16.732,16.724,20.0]
[1673551672936,230.6738,16.732,16.725,17.96]
[1673551673145,230.6738,16.732,16.726,20.96]
[1673551673355,230.6738,16.732,16.727,17.0]
[1673551673560,189.298,16.732,16.727,17.0]
[1673551673786,189.298,16.732,16.729,20.0]
[1673551674102,189.298,16.732,16.728,1.92]
[1673551674509,127.3621,16.732,16.728,20.67725104]
[1673551674736,127.3621,16.732,16.729,40.0]
[1673551674946,127.3621,16.732,16.73,1.92]
[1673551675922,116.3621,16.732,16.73,1.92]
[1673551676230,116.3621,16.732,16.73,20.67725104]
[1673551676627,0.0021,16.732,16.73,20.67725104]
[1673551676843,23.909669,16.736,16.731,20.0]
[1673551677047,23.909669,16.736,16.732,21.92]
[1673551677258,23.909669,16.736,16.733,44.83]
[1673551677483,2.0,16.743,16.734,41.92]
[1673551677690,2.0,16.743,16.734,60.67725104]
[1673551677899,2.0,16.743,16.736,20.0]
[1673551678114,2.0,16.743,16.737,1.92]
[1673551678323,2.0,16.743,16.737,20.67725104]
[1673551678535,2.0,16.743,16.737,37.67725104]
[1673551678748,2.0,16.743,16.738,20.0]
[1673551678959,2.0,16.743,16.739,18.92]
[1673551679151,2.0,16.743,16.74,20.0]
[1673551679360,2.0,16.743,16.741,1.92]
[1673551679991,2.0,16.743,16.741,0.96]
[1673551680216,2.0,16.743,16.74,20.0]
[1673551680437,2.0,16.743,16.741,17.0]
[1673551681156,4.57481907,16.746,16.742,20.0]
[1673551681355,4.57481907,16.746,16.743,21.92]
[1673551681787,4.57481907,16.746,16.744,20.0]
[1673551682003,4.57481907,16.746,16.745,1.92]
[1673551682211,4.57481907,16.746,16.745,21.61481]
[1673551682423,4.57481907,16.746,16.745,40.37206104]
[1673551682625,4.57481907,16.746,16.745,21.61481]
[1673551683585,0.00481907,16.746,16.745,21.61481]
[1673551683797,23.881083,16.757,16.746,20.0]
[1673551684002,23.881083,16.757,16.747,0.96]
[1673551684218,23.881083,16.757,16.746,20.0]
[1673551684430,23.881083,16.757,16.747,17.96]
[1673551684744,20.0,16.756,16.746,20.0]
[1673551684961,19.5,16.756,16.746,20.0]
[1673551685894,19.5,16.756,16.745,20.0]
[1673551686224,44.77,16.755,16.74,24.27]
[1673551686417,20.0,16.754,16.733,20.0]
[1673551686627,44.77,16.753,16.734,64.82]
[1673551686832,44.77,16.753,16.74,24.32]
[1673551687046,20.0,16.754,16.74,24.32]
[1673551687267,20.0,16.754,16.74,43.07725104]
[1673551687488,20.0,16.754,16.741,20.0]
[1673551687897,44.77,16.755,16.741,20.0]
[1673551688098,44.77,16.755,16.742,20.0]
[1673551688637,20.0,16.754,16.742,20.0]
[1673551689164,44.77,16.755,16.742,20.0]
[1673551689379,19.5,16.756,16.742,64.8]
[1673551689776,19.5,16.756,16.741,20.0]
[1673551690003,44.77,16.755,16.737,18.75725104]
[1673551690405,20.0,16.754,16.737,18.75725104]
[1673551690633,44.77,16.753,16.74,24.37]
[1673551690845,64.27,16.756,16.741,20.0]
[1673551691058,64.27,16.756,16.742,20.0]
[1673551691254,64.27,16.756,16.743,17.96]
[1673551691459,64.27,16.756,16.744,20.0]
[1673551691891,64.27,16.756,16.745,17.0]
[1673551692214,64.27,16.756,16.746,20.0]
[1673551692423,64.27,16.756,16.747,17.0]
[1673551693153,64.76,16.757,16.747,17.0]
[1673551693762,44.76,16.757,16.747,17.0]
[1673551693992,225.8362,16.758,16.747,17.0]
[1673551694402,225.8362,16.758,16.748,1.92]
[1673551694613,225.8362,16.758,16.748,20.96]
[1673551694835,225.8362,16.758,16.748,20.0]
[1673551695032,225.8362,16.758,16.746,38.75725104]
[1673551695239,44.75,16.762,16.746,38.75725104]
[1673551695458,23.873486,16.763,16.746,38.75725104]
[1673551695459,23.873486,16.763,16.75,24.4]
[1673551695670,23.873486,16.763,16.751,1.92]
[1673551695873,23.873486,16.763,16.751,37.67725104]
[1673551696208,23.873486,16.763,16.752,18.75725104]
[1673551696405,44.75,16.762,16.753,17.0]
[1673551696607,23.873486,16.763,16.753,17.0]
[1673551696811,23.873486,16.763,16.753,35.75725104]
[1673551697044,44.75,16.762,16.753,35.75725104]
[1673551697868,64.75,16.762,16.753,35.75725104]
[1673551698736,44.75,16.762,16.753,17.0]
[1673551698952,23.873486,16.763,16.753,35.75725104]
[1673551699162,23.873486,16.763,16.754,20.0]
[1673551699464,23.873486,16.763,16.755,35.75725104]
[1673551699673,44.74,16.764,16.756,20.0]
[1673551699986,44.74,16.764,16.755,35.75725104]
[1673551699987,44.74,16.764,16.757,17.0]
[1673551700196,64.74,16.765,16.757,17.0]
[1673551700414,109.9418891,16.759,16.757,17.0]
[1673551700631,109.9418891,16.759,16.758,37.51450208]
[1673551700829,109.9418891,16.759,16.758,18.75725104]
[1673551701246,109.9418891,16.759,16.758,19.71725104]
[1673551701470,109.9418891,16.759,16.758,20.67725104]
[1673551701674,109.9418891,16.759,16.758,19.71725104]
[1673551701872,109.9418891,16.759,16.758,18.75725104]
[1673551702930,109.9418891,16.759,16.758,35.75725104]
[1673551703373,109.9418891,16.759,16.758,37.67725104]
[1673551703561,109.9418891,16.759,16.758,36.71725104]
[1673551703777,109.9418891,16.759,16.758,37.67725104]
[1673551703980,20.0,16.77,16.758,37.67725104]
[1673551703981,23.856011,16.774,16.759,20.0]
[1673551704215,23.856011,16.774,16.76,46.32]
[1673551704739,23.856011,16.774,16.761,38.75725104]
[1673551704931,23.856011,16.774,16.762,1.92]
[1673551705147,23.856011,16.774,16.762,40.67725104]
[1673551705347,23.856011,16.774,16.763,18.75725104]
[1673551705566,23.856011,16.774,16.765,20.0]
[1673551705768,23.856011,16.774,16.766,20.0]
[1673551705997,23.856011,16.774,16.766,38.75725104]
[1673551706214,23.856011,16.774,16.767,17.0]
[1673551706713,23.856011,16.774,16.767,35.75725104]
[1673551707134,23.856011,16.774,16.768,1.92]
[1673551707568,23.856011,16.774,16.769,18.75725104]
[1673551707781,23.856011,16.774,16.77,1.92]
[1673551707990,23.856011,16.774,16.77,21.92]
[1673551708189,23.856011,16.774,16.772,20.0]
[1673551708396,9.875011,16.774,16.773,1.92]
[1673551708607,9.875011,16.774,16.773,59.43450208]
[1673551708831,9.875011,16.774,16.773,40.67725104]
[1673551709148,44.67,16.792,16.774,20.0]
[1673551709363,44.67,16.792,16.78,24.32]
[1673551709572,157.5276,16.797,16.781,1.92]
[1673551709783,64.67,16.793,16.776,20.0]
[1673551709974,64.16,16.793,16.777,1.92]
[1673551710186,64.16,16.793,16.778,20.0]
[1673551710395,64.16,16.793,16.778,38.75725104]
[1673551710607,44.67,16.793,16.78,24.4]
[1673551710825,20.0,16.796,16.781,2.68092795]
[1673551710826,44.66,16.795,16.781,2.68092795]
[1673551711031,44.66,16.795,16.78,43.15725104]
[1673551711249,44.66,16.795,16.781,40.67725104]
[1673551711458,44.66,16.795,16.783,20.0]
[1673551711666,44.66,16.796,16.784,20.0]
[1673551711873,44.66,16.796,16.784,38.75725104]
[1673551712089,44.66,16.796,16.785,35.75725104]
[1673551712506,44.66,16.796,16.78,24.4]
[1673551712717,44.66,16.796,16.77,117.6]
[1673551712718,44.67,16.793,16.779,18.75725104]
[1673551712925,44.67,16.793,16.781,18.75725104]
[1673551713138,20.0,16.792,16.78,24.4]
[1673551713346,44.67,16.791,16.78,24.4]
[1673551713559,20.0,16.79,16.78,24.4]
[1673551713778,44.68,16.789,16.771,64.73]
[1673551714070,44.68,16.789,16.773,18.75725104]
[1673551714298,44.68,16.789,16.773,44.72]
[1673551714512,119.7716,16.788,16.773,18.75725104]
[1673551715555,119.7716,16.788,16.772,44.72]
[1673551715758,44.68,16.787,16.77,24.38]
[1673551715963,44.68,16.787,16.762,44.75]
[1673551715964,45.64,16.787,16.762,44.75]
[1673551716171,64.39725104,16.787,16.76,166.58]
[1673551716403,18.75725104,16.786,16.76,121.83]
[1673551716616,64.69,16.785,16.761,44.75]
[1673551716801,24.24,16.78,16.761,44.75]
[1673551717012,156.9481,16.779,16.761,44.75]
[1673551717442,20.0,16.778,16.761,44.75]
[1673551717660,44.71,16.777,16.761,44.75]
[1673551717873,108.9,16.776,16.761,44.75]
[1673551718275,44.71,16.775,16.762,18.75725104]
[1673551718815,108.9,16.776,16.761,44.75]
[1673551719028,20.0,16.775,16.761,44.75]
[1673551719224,64.71,16.775,16.762,20.0]
[1673551719866,64.71,16.775,16.761,44.75]
[1673551720277,0.96,16.774,16.761,44.75]
[1673551720493,44.72,16.773,16.761,44.75]
[1673551720715,20.0,16.773,16.761,44.75]
[1673551721036,44.72,16.772,16.761,44.75]
[1673551721470,20.0,16.771,16.761,44.75]
[1673551721646,44.73,16.77,16.757,18.75725104]
[1673551721982,20.0,16.769,16.75,24.51]
[1673551722188,20.0,16.769,16.751,19.69577]
[1673551722402,45.69,16.768,16.751,19.69577]
[1673551722612,20.0,16.767,16.751,19.69577]
[1673551722810,139.707,16.767,16.751,19.69577]
[1673551723140,139.707,16.767,16.752,20.0]
[1673551723767,139.707,16.767,16.753,18.75725104]
[1673551724079,139.707,16.767,16.754,20.0]
[1673551724488,139.707,16.767,16.755,18.75725104]
[1673551724704,119.707,16.767,16.756,20.0]
[1673551725140,119.707,16.767,16.757,18.75725104]
[1673551725770,20.0,16.766,16.757,18.75725104]
[1673551726720,20.0,16.766,16.756,20.0]
[1673551726913,20.0,16.766,16.756,18.75725104]
[1673551727758,20.0,16.766,16.752,20.0]
[1673551727973,20.0,16.766,16.751,20.0]